bitfinex/quotes_BTCUSD_20251217
["timestamp","ask_amount","ask_price","bid_price","bid_amount"]
[1766003001431,0.0907,86347.0,86329.0,0.67649]
[1766003001752,0.0907,86347.0,86323.0,0.00161287]
[1766003001753,0.0907,86347.0,86331.0,1.18132]
[1766003002365,1.04809664,86350.0,86331.0,1.18132]
[1766003002366,0.0907,86349.0,86331.0,1.18132]
[1766003002570,0.20616078,86349.0,86331.0,1.18132]
[1766003003124,0.002,86347.0,86324.0,1.18132]
[1766003003325,1.04809664,86360.0,86332.0,1.18132]
[1766003003530,0.08633852,86363.0,86342.0,0.67649]
[1766003003664,0.08633852,86363.0,86348.0,0.67649]
[1766003003873,0.0002552,86366.0,86353.0,1.18132]
[1766003004064,0.0002552,86366.0,86348.0,0.00161287]
[1766003004286,0.0002552,86366.0,86345.0,0.67649]
[1766003004449,0.10483518,86365.0,86350.0,0.50483]
[1766003004677,5.635e-05,86365.0,86352.0,1.18132]
[1766003004851,0.00166922,86365.0,86342.0,0.01158184]
[1766003005073,0.00166922,86365.0,86345.0,0.67649]
[1766003005269,0.00166922,86365.0,86348.0,0.50483]
[1766003005474,0.00166922,86365.0,86351.0,0.67649]
[1766003005648,0.00166922,86365.0,86353.0,0.50483]
[1766003006111,0.00166922,86365.0,86355.0,0.50483]
[1766003006313,0.00166922,86365.0,86355.0,1.18132]
[1766003006716,0.0002552,86366.0,86355.0,0.00161287]
[1766003006926,0.0002552,86366.0,86355.0,0.00166922]
[1766003007393,0.0002552,86366.0,86358.0,0.4923]
[1766003007727,0.0907,86379.0,86358.0,0.4923]
[1766003007728,1.0,86378.0,86359.0,0.68943]
[1766003007931,0.01844,86372.0,86360.0,0.4923]
[1766003008109,0.01844,86372.0,86364.0,0.4923]
[1766003008295,0.01844,86372.0,86366.0,0.4923]
[1766003008493,0.01844,86372.0,86365.0,0.68943]
[1766003009150,0.01944,86372.0,86365.0,0.68943]
[1766003009505,0.01844,86372.0,86365.0,0.68943]
[1766003009761,0.01944,86372.0,86359.0,0.00161287]
[1766003010971,0.01944,86372.0,86355.0,5.635e-05]
[1766003010972,0.0907,86369.0,86355.0,5.635e-05]
[1766003011222,0.0907,86367.0,86355.0,5.635e-05]
[1766003011389,0.0907,86367.0,86353.0,0.47835635]
[1766003012018,0.0907,86367.0,86347.0,0.68943]
[1766003012218,0.0907,86369.0,86347.0,0.68943]
[1766003012578,0.001,86367.0,86347.0,0.68943]
[1766003012784,0.08329183,86367.0,86347.0,0.68943]
[1766003013191,0.0907,86369.0,86347.0,0.68943]
[1766003013481,0.0907,86369.0,86349.0,0.70571]
[1766003013695,0.0907,86369.0,86351.0,0.70571]
[1766003013829,0.9268959,86370.0,86352.0,0.70571]
[1766003014042,0.9268959,86370.0,86345.0,0.01158144]
[1766003014243,0.9268959,86370.0,86347.0,0.01158117]
[1766003014564,0.01844,86372.0,86354.0,0.70571]
[1766003014770,0.001,86367.0,86355.0,1.18902]
[1766003015003,0.001,86367.0,86356.0,0.48331]
[1766003015195,0.01833089,86372.0,86356.0,0.48331]
[1766003015405,0.83924646,86370.0,86347.0,0.00161287]
[1766003015638,0.92981571,86370.0,86349.0,0.48331]
[1766003015849,0.0907,86369.0,86351.0,0.48331]
[1766003016554,0.0907,86369.0,86352.0,0.48331]
[1766003016788,0.0907,86369.0,86352.0,1.18902]
[1766003017706,0.0907,86369.0,86353.0,0.48331]
[1766003017962,0.09963925,86368.0,86354.0,0.70571]
[1766003018178,0.0907,86369.0,86357.0,0.48824]
[1766003018629,0.0907,86369.0,86357.0,0.43524]
[1766003019140,0.001,86370.0,86358.0,0.6842]
[1766003019444,0.01602084,86372.0,86358.0,0.6842]
[1766003019579,0.0907,86370.0,86358.0,0.6842]
[1766003020012,0.00025516,86374.0,86359.0,0.03659175]
[1766003020167,0.01844,86382.0,86359.0,0.68581287]
[1766003020375,0.01844,86387.0,86363.0,0.48824]
[1766003020581,0.01844,86387.0,86367.0,0.48824]
[1766003020829,0.01844,86387.0,86371.0,0.47385]
[1766003021006,0.01844,86387.0,86376.0,0.69418]
[1766003021245,1.0,86393.0,86381.0,1.16803]
[1766003021467,0.01844,86395.0,86381.0,1.16803]
[1766003021468,0.71440828,86391.0,86381.0,1.16803]
[1766003022262,0.0907,86390.0,86381.0,1.16803]
[1766003023192,0.76042337,86407.0,86382.0,0.47385]
[1766003023410,0.52895988,86407.0,86382.0,0.00161287]
[1766003023827,0.52895988,86407.0,86388.0,0.47385]
[1766003024170,0.52895988,86407.0,86384.0,0.01844]
[1766003024371,1.0,86426.0,86388.0,0.00161287]
[1766003024640,0.11546078,86425.0,86395.0,0.69418]
[1766003024840,0.68913,86419.0,86399.0,0.69418]
[1766003025172,0.71440828,86410.0,86399.0,1.16803]
[1766003025392,0.71440828,86410.0,86388.0,0.00161287]
[1766003025393,0.10914,86409.0,86393.0,0.47385]
[1766003025562,0.10914,86409.0,86395.0,0.47385]
[1766003025766,0.08351205,86408.0,86395.0,0.47385]
[1766003025968,0.10925229,86409.0,86395.0,0.47385]
[1766003026312,0.32216883,86405.0,86383.0,0.69418]
[1766003026558,0.0907,86390.0,86374.0,0.69418]
[1766003026736,0.00025515,86382.0,86374.0,0.69418]
[1766003026934,0.00025515,86382.0,86369.0,0.47385]
[1766003027164,0.09095515,86382.0,86366.0,0.69418]
[1766003027339,0.0907,86380.0,86368.0,0.69418]
[1766003027561,0.01183163,86382.0,86368.0,0.69418]
[1766003027740,0.10253163,86382.0,86368.0,0.69418]
[1766003027942,0.10253163,86382.0,86368.0,0.69429229]
[1766003028126,0.09095515,86382.0,86368.0,0.69429229]
[1766003028326,0.0907,86380.0,86368.0,0.69429229]
[1766003028750,0.0907,86380.0,86374.0,0.001]
[1766003028959,0.0907,86378.0,86368.0,0.00011229]
[1766003029281,0.0907,86378.0,86369.0,1.16803]
[1766003029666,0.0907,86378.0,86372.0,0.47385]
[1766003030096,0.00025515,86382.0,86373.0,0.74408]
[1766003030277,0.00025515,86382.0,86374.0,0.74408]
[1766003030486,0.0907,86389.0,86374.0,0.01290251]
[1766003030817,0.01844,86401.0,86374.0,0.00161287]
[1766003030995,1.0,86400.0,86374.0,0.00161287]
[1766003031213,0.68303,86400.0,86374.0,0.00161287]
[1766003031397,0.71440828,86400.0,86374.0,0.00161287]
[1766003031619,0.4799,86397.0,86374.0,0.00161287]
[1766003031823,0.4799,86395.0,86374.0,0.00161287]
[1766003031996,0.68303,86394.0,86374.0,0.00161287]
[1766003032420,0.68303,86394.0,86374.0,0.51244287]
[1766003032628,0.0907,86393.0,86374.0,0.51244287]
[1766003033618,1.22667,86394.0,86374.0,0.00161287]
[1766003033858,0.79901,86392.0,86374.0,0.00161287]
[1766003034061,0.0907,86390.0,86375.0,0.50224]
[1766003034418,1.0,86389.0,86375.0,0.50224]
[1766003035777,0.0907,86392.0,86375.0,0.50385287]
[1766003036073,0.0907,86392.0,86375.0,0.50485287]
[1766003036351,1.19509,86393.0,86375.0,0.00161287]
[1766003036549,0.77864,86390.0,86375.0,0.51474287]
[1766003036851,0.0907,86390.0,86375.0,0.51374287]
[1766003037264,0.77864,86390.0,86375.0,0.00361287]
[1766003037480,0.59785,86387.0,86375.0,0.002]
[1766003037691,0.77864,86386.0,86375.0,0.002]
[1766003038555,0.77864,86386.0,86372.0,0.01844]
[1766003038924,0.77864,86386.0,86375.0,0.001]
[1766003039123,0.50715,86381.0,86368.0,0.00011229]
[1766003039327,0.0907,86374.0,86368.0,0.00011229]
[1766003039735,0.68794,86369.0,86368.0,2.29e-06]
[1766003039943,1.19509,86369.0,86368.0,2.29e-06]
[1766003040365,0.50715,86369.0,86348.0,0.53053]
[1766003040573,0.747725,86368.0,86348.0,0.53053]
[1766003041020,0.0907,86367.0,86348.0,0.53053]
[1766003041226,1.19509,86366.0,86348.0,0.53053]
[1766003041427,1.19509,86366.0,86329.0,0.01158359]
[1766003041428,0.0115801,86355.0,86322.0,0.00111]
[1766003041583,0.68794,86348.0,86323.0,0.53053]
[1766003041779,0.11546078,86354.0,86323.0,0.0184]
[1766003041780,0.0907,86340.0,86323.0,0.0184]
[1766003042028,0.68794,86339.0,86323.0,0.0184]
[1766003042232,0.68794,86339.0,86322.0,0.0003746]
[1766003042233,0.0907,86333.0,86322.0,0.0003746]
[1766003042554,0.0907,86328.0,86322.0,4.6e-06]
[1766003043698,0.0907,86328.0,86322.0,0.0010046]
[1766003044142,0.0907,86333.0,86322.0,0.0010046]
[1766003044468,0.0907,86331.0,86322.0,0.0010046]
[1766003044913,0.013895,86346.0,86322.0,0.51474747]
[1766003045113,1.0,86345.0,86322.0,0.51474747]
[1766003045256,1.0,86345.0,86322.0,0.51374747]
[1766003045441,1.0,86345.0,86322.0,0.53218747]
[1766003045640,0.68794,86347.0,86322.0,0.53218747]
[1766003045893,0.73795839,86352.0,86322.0,0.53218747]
[1766003046128,0.50715,86350.0,86322.0,0.53218747]
[1766003046240,0.11546078,86351.0,86322.0,0.53218747]
[1766003046656,1.0,86359.0,86331.0,0.51213]
[1766003046912,1.0,86360.0,86331.0,0.51374287]
[1766003047076,0.0907,86358.0,86331.0,0.51374287]
[1766003048104,0.0907,86354.0,86331.0,0.00161287]
[1766003048323,0.50715,86351.0,86331.0,0.00161287]
[1766003048502,0.68794,86350.0,86331.0,0.00161287]
[1766003048851,0.68794,86350.0,86322.0,0.0184446]
[1766003048852,0.68794,86341.0,86322.0,0.0184446]
[1766003049170,1.19509,86335.0,86322.0,0.0184446]
[1766003049498,1.0907,86358.0,86323.0,0.51213]
[1766003049700,0.0907,86356.0,86331.0,0.51213]
[1766003049895,0.0907,86354.0,86331.0,0.51374287]
[1766003050097,1.40234949,86360.0,86331.0,0.00161287]
[1766003050098,0.0907,86352.0,86331.0,0.00161287]
[1766003050307,0.77864,86350.0,86331.0,0.00161287]
[1766003050562,0.0907,86350.0,86332.0,0.51213]
[1766003050759,0.0907,86350.0,86333.0,0.52453]
[1766003050958,0.0907,86350.0,86333.0,0.46214287]
[1766003051179,0.80510949,86350.0,86333.0,0.00161287]
[1766003051825,0.0907,86352.0,86333.0,0.00161287]
[1766003052407,1.0,86360.0,86333.0,0.00161287]
[1766003052714,1.0,86360.0,86333.0,0.00261287]
[1766003052913,1.0,86360.0,86334.0,0.50609]
[1766003053116,0.01844,86361.0,86334.0,0.50609]
[1766003053117,0.0907,86356.0,86334.0,0.50770287]
[1766003053317,1.0,86364.0,86341.0,0.49005]
[1766003053518,1.0,86371.0,86343.0,0.49005]
[1766003053745,0.24314566,86368.0,86342.0,0.01844]
[1766003053949,1.0,86367.0,86342.0,0.01844]
[1766003054111,1.21893,86359.0,86341.0,0.00161287]
[1766003054316,1.0,86355.0,86341.0,0.00161287]
[1766003054515,0.05001839,86368.0,86341.0,0.49166287]
[1766003054766,0.23158601,86362.0,86341.0,0.49166287]
[1766003054967,1.23050956,86359.0,86341.0,0.00161287]
[1766003055150,0.24317663,86357.0,86341.0,0.00161287]
[1766003055368,0.7155,86346.0,86315.0,0.24329482]
[1766003055571,0.0907,86345.0,86323.0,0.49005]
[1766003055769,0.08062,86344.0,86323.0,0.49166287]
[1766003057100,0.01844,86355.0,86323.0,0.00161287]
[1766003057237,0.49131,86354.0,86323.0,0.00161287]
[1766003057453,1.0,86355.0,86323.0,0.00161287]
[1766003057665,0.11546078,86354.0,86324.0,0.09893379]
[1766003057875,0.11546078,86354.0,86324.0,0.10054666]
[1766003058570,1.21893,86359.0,86325.0,0.01158412]
[1766003058782,1.0,86358.0,86330.0,0.71440949]
[1766003059066,0.001,86354.0,86330.0,0.00161287]
[1766003060250,0.8062,86363.0,86330.0,0.00161287]
[1766003060450,0.0907,86360.0,86330.0,0.00161287]
[1766003060628,0.0907,86358.0,86330.0,0.00161287]
[1766003060852,0.0907,86356.0,86330.0,0.00161287]
[1766003061055,0.0907,86358.0,86331.0,0.01844]
[1766003061377,0.0907,86359.0,86331.0,0.02005287]
[1766003061598,0.001,86358.0,86331.0,0.02005287]
[1766003061809,0.0907,86359.0,86331.0,0.02005287]
[1766003062147,0.001,86358.0,86331.0,0.02005287]
[1766003062295,0.59413,86354.0,86331.0,0.02005287]
[1766003062499,0.0907,86354.0,86331.0,0.02005287]
[1766003063494,0.001,86358.0,86331.0,0.02005287]
[1766003064230,0.001,86358.0,86340.0,0.71440949]
[1766003064447,0.001,86358.0,86340.0,0.71602236]
[1766003064667,0.0907,86373.0,86340.0,0.71602236]
[1766003064872,0.0907,86371.0,86341.0,0.07276051]
[1766003065073,0.0907,86371.0,86341.0,0.07437338]
[1766003065477,0.50343,86385.0,86350.0,0.71440949]
[1766003065704,1.0,86383.0,86351.0,0.06289124]
[1766003065900,1.0,86383.0,86351.0,0.06450411]
[1766003066056,0.001,86371.0,86351.0,0.02005287]
[1766003066481,0.0907,86383.0,86351.0,0.02005287]
[1766003066726,0.00037434,86383.0,86351.0,0.02005287]
[1766003067134,0.09107434,86383.0,86351.0,0.02005287]
[1766003067363,0.00037434,86383.0,86360.0,0.71440949]
[1766003067569,0.00037434,86383.0,86360.0,0.71602236]
[1766003068008,1.0,86399.0,86366.0,0.01157863]
[1766003068205,0.00011229,86399.0,86371.0,0.23107796]
[1766003068404,0.00011229,86399.0,86375.0,0.2195]
[1766003068578,0.00011229,86399.0,86375.0,0.22111287]
[1766003068807,0.00011229,86399.0,86381.0,0.2195]
[1766003069001,2.29e-06,86399.0,86383.0,0.21939]
[1766003069351,2.29e-06,86399.0,86383.0,0.22100287]
[1766003070117,0.7155,86397.0,86383.0,0.00161287]
[1766003070324,0.7155,86397.0,86368.0,0.21939]
[1766003070325,1.21893,86394.0,86378.0,0.01844]
[1766003071729,0.50343,86393.0,86370.0,0.21939]
[1766003071958,0.09070229,86399.0,86370.0,0.22100287]
[1766003072386,1.30963229,86399.0,86370.0,0.22100287]
[1766003073918,0.50343229,86399.0,86370.0,0.22100287]
[1766003074157,0.0907,86397.0,86370.0,0.22100287]
[1766003074681,0.0002551,86390.0,86371.0,0.0184]
[1766003074919,1.21893,86386.0,86371.0,0.0184]
[1766003075402,1.21893,86385.0,86371.0,0.0184]
[1766003076066,0.50343,86386.0,86370.0,0.00161287]
[1766003076312,0.50343,86384.0,86371.0,0.001]
[1766003076549,0.50343,86384.0,86370.0,0.00161287]
[1766003076550,1.21893,86382.0,86370.0,0.00161287]
[1766003076821,1.21893,86382.0,86371.0,0.001]
[1766003077538,0.0907,86384.0,86371.0,0.001]
[1766003077821,0.0907,86384.0,86350.0,0.71440949]
[1766003077822,0.71440949,86381.0,86340.0,2.0907]
[1766003078057,0.0907,86364.0,86340.0,2.0184]
[1766003078305,0.8062,86362.0,86340.0,2.0184]
[1766003078543,0.8062,86358.0,86340.0,2.0184]
[1766003078776,0.0907,86358.0,86340.0,2.0184]
[1766003079236,0.0907,86358.0,86340.0,2.01877434]
[1766003079472,0.7339,86367.0,86340.0,2.01877434]
[1766003079473,0.0907,86360.0,86340.0,2.01877434]
[1766003079698,0.0907,86360.0,86341.0,0.22207]
[1766003080663,0.0907,86370.0,86341.0,0.22207]
[1766003080901,1.0,86367.0,86343.0,0.22207]
[1766003081124,0.0907,86372.0,86345.0,0.22207]
[1766003081388,0.00161,86367.0,86345.0,0.22207]
[1766003081645,1.0,86377.0,86349.0,0.22207]
[1766003081864,1.0,86376.0,86352.0,0.09512]
[1766003082175,0.52393,86377.0,86354.0,0.09512]
[1766003082378,1.0,86388.0,86361.0,0.22207]
[1766003082578,1.0,86386.0,86365.0,0.31719]
[1766003082798,1.0,86386.0,86365.0,0.31880287]
[1766003083357,1.0,86386.0,86365.0,0.28580287]
[1766003083555,0.0907,86385.0,86365.0,0.28580287]
[1766003084159,0.0907,86385.0,86366.0,0.09512]
[1766003084364,0.0907,86385.0,86366.0,0.00161287]
[1766003084566,0.0907,86389.0,86367.0,0.09512]
[1766003084950,0.0907,86389.0,86366.0,0.00161287]
[1766003085157,0.0907,86385.0,86366.0,0.00161287]
[1766003085357,0.0907,86385.0,86366.0,0.00198721]
[1766003085589,0.20616078,86385.0,86366.0,0.00198721]
[1766003086045,0.0907,86385.0,86366.0,0.00198721]
[1766003086248,0.0002551,86390.0,86367.0,0.28419]
[1766003087017,0.0002551,86390.0,86368.0,0.09512]
[1766003087400,0.0012551,86390.0,86368.0,0.09512]
[1766003087596,0.0012551,86390.0,86368.0,0.09673287]
[1766003087796,0.0012551,86390.0,86369.0,0.09512]
[1766003088064,0.0012551,86390.0,86371.0,0.09512]
[1766003088181,0.0012551,86390.0,86372.0,0.28419]
[1766003088668,0.0002551,86390.0,86372.0,0.28419]
[1766003088790,0.0002551,86390.0,86372.0,0.09512]
[1766003088987,0.0012551,86390.0,86372.0,0.09512]
[1766003089234,0.0907,86388.0,86373.0,0.09512]
[1766003089445,0.0907,86388.0,86373.0,0.28419]
[1766003090270,0.0002551,86390.0,86373.0,0.28419]
[1766003090271,0.0002551,86390.0,86373.0,0.09512]
[1766003090801,0.0002551,86390.0,86369.0,0.00161287]
[1766003090802,0.0907,86387.0,86369.0,0.09673287]
[1766003090996,0.08097151,86386.0,86369.0,0.09673287]
[1766003091251,0.08097151,86386.0,86369.0,0.06273287]
[1766003092806,0.61463,86387.0,86369.0,0.06273287]
[1766003093301,0.0002551,86390.0,86371.0,0.06274]
[1766003093486,0.0002551,86390.0,86367.0,0.25181]
[1766003093684,0.0002551,86390.0,86370.0,0.06274]
[1766003093921,0.80946,86388.0,86366.0,0.00037434]
[1766003094045,0.71876,86381.0,86370.0,0.0184]
[1766003094247,1.24269,86381.0,86370.0,0.0184]
[1766003094445,0.00909551,86389.0,86366.0,0.00037434]
[1766003094446,1.24269,86385.0,86366.0,0.00037434]
[1766003094653,0.52393,86383.0,86366.0,0.00037434]
[1766003094872,0.71876,86378.0,86366.0,0.00037434]
[1766003095036,0.52393,86377.0,86366.0,0.00037434]
[1766003095243,0.52393,86375.0,86366.0,0.00037434]
[1766003095570,0.52554287,86375.0,86366.0,0.00037434]
[1766003096141,0.00161287,86375.0,86366.0,0.00037434]
[1766003096545,0.00261287,86375.0,86366.0,0.00037434]
[1766003096750,0.00161287,86375.0,86366.0,0.00037434]
[1766003097328,0.00261287,86375.0,86366.0,0.00037434]
[1766003097564,0.00909551,86389.0,86340.0,2.0]
[1766003097565,0.52393,86363.0,86340.0,2.0]
[1766003097796,0.52393,86361.0,86340.0,2.0]
[1766003098020,0.00161287,86361.0,86345.0,0.18907]
[1766003098253,0.00161287,86361.0,86347.0,0.25181]
[1766003098710,0.00161287,86361.0,86345.0,0.18907]
[1766003098935,4.04e-06,86363.0,86347.0,0.00161]
[1766003099159,4.04e-06,86363.0,86351.0,0.06076]
[1766003099410,4.04e-06,86363.0,86353.0,0.06076]
[1766003099682,4.04e-06,86363.0,86356.0,0.18907]
[1766003099921,4.04e-06,86363.0,86362.0,0.24983]
[1766003100150,4.04e-06,86363.0,86362.0,0.25144]
[1766003101025,4.04e-06,86363.0,86353.0,0.001]
[1766003101242,4.04e-06,86363.0,86324.0,0.07332933]
[1766003101243,2.04785382,86360.0,86323.0,0.03086251]
[1766003101459,1.0,86347.0,86306.0,0.03086251]
[1766003101674,0.71876,86341.0,86324.0,0.0184]
[1766003101898,1.52393,86340.0,86324.0,0.0184]
[1766003102119,1.0,86338.0,86324.0,0.0184]
[1766003102539,1.0,86338.0,86324.0,0.02001]
[1766003102745,0.0907,86351.0,86325.0,0.73261]
[1766003102958,0.71876,86339.0,86324.0,0.02001]
[1766003103166,0.71876,86337.0,86324.0,0.02001]
[1766003103587,0.52393,86337.0,86324.0,0.02001]
[1766003103797,1.24269,86337.0,86324.0,0.02001]
[1766003104037,0.73035,86334.0,86324.0,0.02001]
[1766003104264,0.73035,86330.0,86321.0,0.0184]
[1766003104474,0.73035,86330.0,86321.0,0.01850999]
[1766003105358,0.73196287,86330.0,86321.0,0.01850999]
[1766003105559,0.73196287,86330.0,86318.0,0.00252977]
[1766003105765,0.51063,86329.0,86318.0,0.00258175]
[1766003105997,0.00161287,86319.0,86318.0,1.75e-06]
[1766003106216,0.01258251,86337.0,86318.0,1.75e-06]
[1766003106217,0.00161287,86329.0,86318.0,1.75e-06]
[1766003106631,0.0907,86336.0,86319.0,0.73792]
[1766003106828,0.0907,86336.0,86319.0,1.2375]
[1766003107032,0.06078716,86335.0,86319.0,1.2375]
[1766003107465,0.73035,86330.0,86319.0,0.00161]
[1766003107669,0.73035,86330.0,86318.0,1.75e-06]
[1766003107670,0.06078716,86335.0,86318.0,1.75e-06]
[1766003107875,1.0,86329.0,86318.0,1.75e-06]
[1766003108318,0.73035,86328.0,86318.0,1.75e-06]
[1766003108539,0.00161287,86329.0,86318.0,1.75e-06]
[1766003109216,0.00161287,86319.0,86305.0,0.01844]
[1766003109418,1.24259287,86319.0,86305.0,0.01855241]
[1766003110903,0.73196287,86319.0,86305.0,0.00011241]
[1766003111647,0.55950334,86319.0,86305.0,0.00172528]
[1766003111845,1.0,86338.0,86311.0,0.74069]
[1766003112045,0.001,86319.0,86318.0,0.51847]
[1766003112247,0.0907,86335.0,86318.0,0.00161287]
[1766003112526,0.28455265,86339.0,86318.0,2.87e-06]
[1766003112527,1.0,86329.0,86318.0,2.87e-06]
[1766003112768,0.052907,86339.0,86318.0,0.51847287]
[1766003112969,0.0907,86333.0,86318.0,2.87e-06]
[1766003113167,1.0,86332.0,86318.0,2.87e-06]
[1766003113325,0.52379,86329.0,86318.0,2.87e-06]
[1766003113522,1.68703,86326.0,86318.0,2.87e-06]
[1766003113724,1.0,86329.0,86318.0,2.87e-06]
[1766003113954,1.0,86327.0,86318.0,2.87e-06]
[1766003114169,0.99796,86327.0,86318.0,2.87e-06]
[1766003114373,1.68499,86327.0,86309.0,0.51847]
[1766003114573,0.68703,86327.0,86309.0,0.51847]
[1766003114813,0.68703,86325.0,86305.0,0.00011241]
[1766003114998,1.21082,86333.0,86308.0,0.74069]
[1766003115201,1.21082,86333.0,86305.0,0.01401658]
[1766003115202,1.0,86332.0,86312.0,0.51847]
[1766003115337,1.0,86331.0,86312.0,0.51847]
[1766003115533,0.001,86327.0,86312.0,0.51847]
[1766003115759,0.00261,86327.0,86311.0,0.74069]
[1766003115963,0.00161,86327.0,86311.0,0.74069]
[1766003116457,0.00161,86327.0,86311.0,1.25916]
[1766003116658,0.055994,86327.0,86311.0,0.74069]
[1766003117688,0.52379,86326.0,86305.0,0.00011241]
[1766003117889,0.68703,86325.0,86305.0,0.51858241]
[1766003118234,0.68864,86325.0,86305.0,0.51858241]
[1766003118568,0.68703,86324.0,86305.0,0.51858241]
[1766003118780,0.11546078,86323.0,86305.0,0.51858241]
[1766003123982,0.11546078,86323.0,86305.0,0.00011241]
[1766003124179,0.00161,86325.0,86305.0,0.00011241]
[1766003124180,1.0,86319.0,86305.0,2.41e-06]
[1766003124381,0.68703,86314.0,86305.0,2.41e-06]
[1766003124725,0.0907,86323.0,86309.0,0.74069]
[1766003124964,0.0907,86323.0,86305.0,2.41e-06]
[1766003124965,0.109231,86322.0,86311.0,0.51847]
[1766003125140,0.0907,86323.0,86311.0,0.51847]
[1766003125292,0.002,86319.0,86311.0,0.51847]
[1766003125694,0.0907,86323.0,86311.0,0.51847]
[1766003125904,0.11012234,86322.0,86305.0,2.41e-06]
[1766003126106,0.001,86323.0,86305.0,0.51847241]
[1766003126327,1.0,86324.0,86309.0,0.51847]
[1766003126880,1.0,86324.0,86311.0,0.51847]
[1766003127084,1.0,86324.0,86311.0,1.25916]
[1766003127321,0.00161,86325.0,86311.0,1.25916]
[1766003127560,0.0141422,86325.0,86313.0,1.25916]
[1766003127766,1.0,86329.0,86313.0,1.26077287]
[1766003128247,1.0,86329.0,86313.0,0.00161287]
[1766003128455,0.24321023,86346.0,86320.0,0.51847]
[1766003128456,1.0,86340.0,86320.0,0.51847]
[1766003128679,0.52379,86337.0,86315.0,0.53691]
[1766003128909,0.01158184,86342.0,86315.0,0.53691]
[1766003128910,0.001,86325.0,86315.0,0.52008287]
[1766003129077,0.65083343,86336.0,86315.0,0.00161287]
[1766003129078,0.52379,86328.0,86315.0,0.00161287]
[1766003129657,0.68703,86327.0,86315.0,0.00161287]
[1766003130141,0.52379,86325.0,86315.0,0.00161287]
[1766003130342,1.21082,86324.0,86315.0,0.00161287]
[1766003130860,1.0,86334.0,86315.0,0.52008287]
[1766003131047,0.001,86325.0,86315.0,0.00161287]
[1766003131277,1.0,86330.0,86314.0,0.01505287]
[1766003131666,0.001,86324.0,86314.0,0.53352287]
[1766003131870,1.0,86330.0,86314.0,0.53352287]
[1766003132070,1.0,86328.0,86314.0,0.53352287]
[1766003132535,1.0,86327.0,86314.0,0.01505287]
[1766003133558,0.03114477,86339.0,86315.0,0.51847]
[1766003133758,1.0,86344.0,86322.0,0.74069]
[1766003133979,1.0,86342.0,86314.0,0.01605287]
[1766003134169,1.0,86342.0,86314.0,0.01505287]
[1766003134371,1.68703,86342.0,86318.0,0.51847]
[1766003134569,0.001,86327.0,86320.0,0.51847]
[1766003134776,0.68703,86340.0,86320.0,0.51847]
[1766003135147,0.68703,86340.0,86319.0,0.74069]
[1766003135148,1.21082,86338.0,86319.0,0.74069]
[1766003135315,1.0,86337.0,86319.0,0.74069]
[1766003135523,0.00161287,86337.0,86320.0,0.51847]
[1766003135668,0.00161287,86337.0,86324.0,0.51847]
[1766003135874,0.00161287,86337.0,86324.0,1.25916]
[1766003136079,0.00161287,86337.0,86325.0,0.51847]
[1766003136289,0.00161287,86337.0,86325.0,1.25916]
[1766003136713,1.0,86336.0,86315.0,0.51847]
[1766003136923,0.68703,86334.0,86315.0,0.51847]
[1766003137137,0.68864287,86334.0,86316.0,0.51847]
[1766003137336,0.00161287,86334.0,86315.0,0.74069]
[1766003137699,0.00161287,86334.0,86315.0,1.25916]
[1766003137909,0.68703,86332.0,86310.0,0.00025547]
[1766003138103,0.68703,86332.0,86311.0,0.01844]
[1766003138104,0.52379,86330.0,86311.0,0.01844]
[1766003138307,1.0,86329.0,86312.0,0.74069]
[1766003138508,1.0,86328.0,86311.0,0.01844]
[1766003138718,0.11546078,86327.0,86311.0,0.01844]
[1766003139254,0.11546078,86327.0,86311.0,0.53691]
[1766003139689,0.52379,86326.0,86310.0,0.00025547]
[1766003139892,0.68703,86323.0,86310.0,0.00025547]
[1766003140090,0.11546078,86322.0,86310.0,0.00025547]
[1766003141217,0.001,86322.0,86311.0,0.48916]
[1766003141592,0.001,86322.0,86310.0,0.00025547]
[1766003141593,0.00161287,86330.0,86315.0,0.73182]
[1766003141817,0.00161287,86330.0,86315.0,1.22098]
[1766003142020,1.0,86329.0,86310.0,0.00025547]
[1766003142378,0.00161287,86330.0,86311.0,1.22098]
[1766003142585,1.0,86329.0,86310.0,0.00025547]
[1766003142843,0.01957264,86328.0,86311.0,1.22098]
[1766003143040,0.00161287,86330.0,86313.0,0.73182]
[1766003143041,0.5657,86329.0,86313.0,0.73182]
[1766003143241,2.87e-06,86330.0,86314.0,0.73182]
[1766003143465,0.92347,86329.0,86314.0,0.00161]
[1766003143768,2.87e-06,86330.0,86314.0,0.00161]
[1766003143968,0.00100287,86330.0,86314.0,0.00161]
[1766003144178,2.87e-06,86330.0,86314.0,0.00161]
[1766003145420,1.0,86329.0,86314.0,0.00161]
[1766003145556,1.0,86327.0,86314.0,0.00161]
[1766003145776,2.87e-06,86330.0,86315.0,0.07423]
[1766003146214,1.0,86329.0,86315.0,0.07423]
[1766003146417,1.0,86329.0,86314.0,0.00161]
[1766003146793,0.50583,86327.0,86314.0,0.00161]
[1766003147033,1.0,86326.0,86314.0,0.00161]
[1766003147242,0.0907,86312.0,86279.0,0.0004]
[1766003147443,0.50583,86304.0,86281.0,0.73222]
[1766003147615,1.0,86303.0,86282.0,0.73182]
[1766003148230,1.0,86303.0,86284.0,0.48916]
[1766003148443,1.0,86301.0,86286.0,0.48916]
[1766003148651,0.0907,86308.0,86289.0,0.73182]
[1766003148902,1.0,86305.0,86289.0,0.73182]
[1766003149233,0.50583,86304.0,86281.0,0.00051234]
[1766003149395,0.69678,86295.0,86281.0,0.00051234]
[1766003149550,0.50583,86293.0,86281.0,0.00051234]
[1766003149902,0.69678,86292.0,86281.0,0.00051234]
[1766003150126,0.50583,86291.0,86281.0,0.00051234]
[1766003150329,0.50583,86289.0,86279.0,0.0004]
[1766003150618,0.50594214,86289.0,86279.0,0.0004]
[1766003150817,0.50755501,86289.0,86279.0,0.0004]
[1766003150944,0.09242501,86289.0,86279.0,0.0004]
[1766003151349,0.0789205,86288.0,86279.0,0.0004]